bitfinex/quotes_BTCUSD_20210101
["timestamp","ask_amount","ask_price","bid_price","bid_amount"]
[1609464629178,0.355969,29426.0,29420.0,41.68561549]
[1609464630076,0.205969,29426.0,29420.0,41.68561549]
[1609464630278,0.200969,29426.0,29420.0,41.68561549]
[1609464630481,0.195969,29426.0,29421.0,1.0]
[1609464630782,0.195969,29426.0,29421.0,1.2]
[1609464630980,0.095969,29426.0,29421.0,1.2]
[1609464631585,0.053369,29426.0,29421.0,1.2]
[1609464631984,0.053369,29426.0,29422.0,1.2]
[1609464632386,0.011218,29425.0,29423.0,0.01071507]
[1609464632684,0.011218,29425.0,29424.0,0.18]
[1609464632885,1.861218,29425.0,29423.0,0.21071507]
[1609464633093,5.07112113,29432.0,29430.0,38.03648533]
[1609464633842,3.99865559,29431.0,29430.0,38.03648533]
[1609464634141,3.98365559,29431.0,29430.0,38.03648533]
[1609464634338,0.12865559,29431.0,29430.0,38.03648533]
[1609464634538,0.12865559,29431.0,29430.0,38.82242033]
[1609464634943,5.07112113,29432.0,29430.0,38.82242033]
[1609464635144,5.07112113,29432.0,29431.0,0.360935]
[1609464635577,5.06612113,29432.0,29430.0,38.4624262]
[1609464635776,5.06612113,29432.0,29431.0,1.520935]
[1609464635978,5.06612113,29432.0,29431.0,0.765935]
[1609464636378,5.06612113,29432.0,29431.0,0.555935]
[1609464636677,5.06612113,29432.0,29431.0,0.355935]
[1609464636678,5.06112113,29432.0,29431.0,0.355935]
[1609464636885,5.06112113,29432.0,29430.0,38.5463262]
[1609464637218,5.05612113,29432.0,29430.0,38.0374262]
[1609464637578,5.05612113,29432.0,29431.0,0.37156471]
[1609464637883,5.05612113,29432.0,29431.0,0.70571271]
[1609464638276,5.04612113,29432.0,29431.0,1.06656471]
[1609464638577,5.04612113,29432.0,29431.0,0.01071271]
[1609464639412,5.04612113,29432.0,29431.0,0.37156471]
[1609464639413,4.45112113,29432.0,29431.0,0.37156471]
[1609464639814,4.45112113,29432.0,29431.0,0.60156471]
[1609464640019,4.45112113,29432.0,29431.0,0.24071271]
[1609464640020,4.41242113,29432.0,29431.0,0.24071271]
[1609464640315,4.41242113,29432.0,29431.0,0.01071271]
[1609464640514,4.41242113,29432.0,29431.0,0.37156471]
[1609464640714,4.40242113,29432.0,29431.0,0.37156471]
[1609464640914,4.40242113,29432.0,29431.0,0.68156471]
[1609464641216,4.39742113,29432.0,29431.0,0.88156471]
[1609464641413,4.39742113,29432.0,29431.0,0.93156471]
[1609464641819,4.39742113,29432.0,29431.0,0.37071271]
[1609464642317,4.39742113,29432.0,29431.0,2.23446161]
[1609464642717,0.39242113,29432.0,29431.0,1.20946161]
[1609464642936,0.39242113,29432.0,29431.0,2.60946161]
[1609464643138,0.39242113,29432.0,29431.0,1.60946161]
[1609464643540,0.39242113,29432.0,29431.0,2.00593283]
[1609464643740,0.39242113,29432.0,29431.0,3.75593283]
[1609464644140,0.39242113,29432.0,29431.0,2.00593283]
[1609464644540,0.39242113,29432.0,29431.0,3.00593283]
[1609464644741,0.39242113,29432.0,29431.0,3.75593283]
[1609464645258,0.00316209,29433.0,29431.0,3.75593283]
[1609464645259,0.2608,29450.0,29431.0,3.78940476]
[1609464645556,1.43968903,29452.0,29450.0,25.73006144]
[1609464645945,0.16902399,29451.0,29450.0,25.73006144]
[1609464646147,3.36902399,29451.0,29450.0,25.73006144]
[1609464646849,4.85868054,29451.0,29450.0,25.62607781]
[1609464647046,4.41902399,29451.0,29450.0,25.31607781]
[1609464647345,4.41902399,29451.0,29450.0,16.60034781]
[1609464647346,4.33402399,29451.0,29450.0,16.60034781]
[1609464647542,4.23402399,29451.0,29450.0,16.60034781]
[1609464647742,3.28402399,29451.0,29450.0,16.60034781]
[1609464647946,4.33402399,29451.0,29450.0,16.59034781]
[1609464648143,4.33402399,29451.0,29450.0,16.19861464]
[1609464648478,4.32902399,29451.0,29450.0,16.19861464]
[1609464649079,3.27902399,29451.0,29450.0,16.19861464]
[1609464649279,4.32902399,29451.0,29450.0,16.19361464]
[1609464649677,4.31902399,29451.0,29450.0,16.19361464]
[1609464649877,4.31402399,29451.0,29450.0,16.19361464]
[1609464650177,3.26402399,29451.0,29450.0,16.19361464]
[1609464650478,3.09402399,29451.0,29450.0,16.19361464]
[1609464650678,4.24402399,29451.0,29450.0,16.19361464]
[1609464651476,3.09402399,29451.0,29450.0,16.19361464]
[1609464651680,4.24402399,29451.0,29450.0,16.19361464]
[1609464651883,2.10786101,29451.0,29450.0,16.39100198]
[1609464652287,2.10786101,29451.0,29450.0,16.19100198]
[1609464652488,4.25786101,29451.0,29450.0,16.19100198]
[1609464652788,4.70286101,29451.0,29450.0,16.17328632]
[1609464653187,4.69786101,29451.0,29450.0,16.17328632]
[1609464653785,4.69786101,29451.0,29450.0,16.13948632]
[1609464653988,2.54786101,29451.0,29450.0,13.83661632]
[1609464654228,2.10286101,29451.0,29450.0,13.83661632]
[1609464654420,2.09786101,29451.0,29450.0,13.83661632]
[1609464654624,3.14786101,29451.0,29450.0,13.83661632]
[1609464654822,4.25,29451.0,29450.0,13.83161632]
[1609464655722,0.89800284,29453.0,29450.0,13.83161632]
[1609464655925,0.5087,29452.0,29450.0,13.83161632]
[1609464656529,0.42849238,29454.0,29450.0,13.83161632]
[1609464656726,0.42849238,29454.0,29450.0,14.03161632]
[1609464656924,2.0,29453.0,29450.0,14.03161632]
[1609464657128,2.0,29453.0,29450.0,13.83161632]
[1609464657324,1.99647711,29453.0,29450.0,14.03161632]
[1609464657626,2.0,29453.0,29451.0,7.2]
[1609464657846,2.0,29454.0,29451.0,7.2]
[1609464658058,1.41749488,29455.0,29451.0,7.2]
[1609464658250,1.41749488,29455.0,29451.0,7.0]
[1609464658849,1.36749488,29455.0,29451.0,7.19238734]
[1609464659249,1.36509488,29455.0,29452.0,1.0]
[1609464659554,1.36470044,29455.0,29454.0,4.26403268]
[1609464659753,1.36470044,29455.0,29454.0,5.26403649]
[1609464659949,1.21470044,29455.0,29454.0,5.26403649]
[1609464660149,1.21470044,29455.0,29454.0,5.48166996]
[1609464660453,0.76033987,29455.0,29454.0,5.26403649]
[1609464660649,0.76033987,29455.0,29454.0,6.25903649]
[1609464661148,0.51293987,29455.0,29454.0,6.04500381]
[1609464661549,0.51293987,29455.0,29454.0,6.23704991]
[1609464662155,0.51293987,29455.0,29454.0,3.81e-06]
[1609464662357,0.45293987,29455.0,29454.0,3.81e-06]
[1609464662552,0.43036485,29455.0,29454.0,3.81e-06]
[1609464662855,0.41536485,29455.0,29454.0,3.81e-06]
[1609464663052,0.38782132,29455.0,29454.0,3.81e-06]
[1609464664111,0.89652132,29455.0,29454.0,3.81e-06]
[1609464664506,0.89652132,29455.0,29451.0,6.17937087]
[1609464665314,0.89652132,29455.0,29451.0,7.19797087]
[1609464665706,0.1718136,29454.0,29451.0,3.84797087]
[1609464665915,0.4032136,29454.0,29451.0,0.6830275]
[1609464666112,0.4032136,29454.0,29450.0,13.67661103]
[1609464666113,0.21366929,29453.0,29450.0,13.67661103]
[1609464666309,2.20866929,29453.0,29450.0,10.07129315]
[1609464666515,1.91912346,29452.0,29450.0,9.31487356]
[1609464666715,1.91912346,29452.0,29450.0,6.56296987]
[1609464666716,1.17632476,29451.0,29450.0,6.56296987]
[1609464666909,1.41069308,29451.0,29450.0,5.74376987]
[1609464667107,1.41069308,29451.0,29450.0,2.78506986]
[1609464667381,3.8236587,29451.0,29434.0,0.00101783]
[1609464667588,0.2546,29442.0,29434.0,0.00101783]
[1609464667785,0.53521,29442.0,29434.0,7.83e-06]
[1609464667984,0.32965818,29439.0,29434.0,7.83e-06]
[1609464668380,1.05936772,29439.0,29434.0,7.83e-06]
[1609464668684,0.94126513,29438.0,29434.0,7.83e-06]
[1609464668883,0.94126513,29438.0,29418.0,0.0004]
[1609464668884,0.72970954,29437.0,29418.0,0.0004]
[1609464669089,0.72970954,29435.0,29416.0,0.39647122]
[1609464669284,0.0020599,29424.0,29416.0,0.39647122]
[1609464669483,0.0020599,29424.0,29416.0,0.42993934]
[1609464669682,0.00205995,29423.0,29416.0,0.42493934]
[1609464669885,0.00205993,29424.0,29417.0,0.32647122]
[1609464670082,0.00205993,29424.0,29418.0,0.03346812]
[1609464670282,0.00205993,29424.0,29421.0,0.5091]
[1609464670487,0.00205993,29424.0,29422.0,1.0]
[1609464670791,0.00205957,29425.0,29423.0,0.560852]
[1609464670988,9.57e-06,29425.0,29424.0,5.5]
[1609464671190,9.57e-06,29425.0,29424.0,6.880752]
[1609464671391,0.78280852,29441.0,29425.0,0.32647122]
[1609464671587,0.78280852,29441.0,29432.0,0.5089]
[1609464671891,0.25,29441.0,29431.0,0.6785]
[1609464672090,0.001,29435.0,29428.0,0.23346812]
[1609464672285,0.00243731,29435.0,29427.0,0.52647122]
[1609464672693,0.00243731,29435.0,29427.0,0.32647122]
[1609464672694,0.23101731,29435.0,29427.0,0.32647122]
[1609464672907,0.23101731,29435.0,29423.0,0.6785]
[1609464673105,0.21285636,29434.0,29421.0,0.2]
[1609464673601,0.21285636,29434.0,29422.0,0.6468]
[1609464673809,0.21285636,29434.0,29425.0,1.2199]
[1609464674009,0.20785636,29434.0,29426.0,1.25]
[1609464674306,0.20785636,29434.0,29425.0,1.2199]
[1609464674505,0.20785636,29434.0,29426.0,0.32647122]
[1609464674707,0.001,29435.0,29426.0,0.52647122]
[1609464675105,0.21266424,29434.0,29425.0,1.2199]
[1609464675308,0.21266424,29434.0,29426.0,1.34637122]
[1609464675603,0.001,29435.0,29426.0,1.0199]
[1609464675802,0.001,29435.0,29426.0,1.2199]
[1609464676107,0.21265412,29434.0,29426.0,1.0199]
[1609464676600,0.21265412,29434.0,29426.0,1.0149]
[1609464677202,0.18073912,29434.0,29426.0,1.0149]
[1609464677607,0.21174844,29433.0,29426.0,1.0149]
[1609464678627,0.20671609,29434.0,29426.0,1.0149]
[1609464679628,0.00154025,29435.0,29426.0,1.0149]
[1609464680530,0.21158621,29434.0,29426.0,1.0149]
[1609464680726,0.21158621,29434.0,29426.0,1.5239]
[1609464680929,0.21158621,29434.0,29426.0,1.0149]
[1609464681431,0.07,29433.0,29426.0,1.0149]
[1609464681633,0.205,29432.0,29426.0,1.0149]
[1609464681833,0.78114996,29431.0,29426.0,1.0149]
[1609464682133,0.07,29430.0,29426.0,1.0149]
[1609464682569,0.07,29431.0,29426.0,1.0149]
[1609464682873,0.21304931,29430.0,29426.0,1.01250001]
[1609464683070,0.5091,29432.0,29426.0,1.01250001]
[1609464683465,0.21293514,29431.0,29426.0,1.01250001]
[1609464683966,0.21293514,29431.0,29426.0,1.01130001]
[1609464683967,0.50939514,29431.0,29426.0,1.01130001]
[1609464684217,0.345,29430.0,29426.0,0.9898728]
[1609464684418,0.77442066,29429.0,29426.0,0.9898728]
[1609464684619,0.07,29428.0,29426.0,0.9748728]
[1609464684920,0.98724941,29427.0,29426.0,0.9648728]
[1609464685112,0.98724941,29427.0,29426.0,0.79351829]
[1609464685513,3.36224941,29427.0,29426.0,0.79351829]
[1609464686046,3.36224941,29427.0,29426.0,0.7331655]
[1609464686514,3.36224941,29427.0,29426.0,0.29740437]
[1609464687112,3.36224941,29427.0,29426.0,0.29200437]
[1609464687312,5.11694942,29427.0,29426.0,0.28054466]
[1609464687516,0.75851568,29425.0,29415.0,0.0006]
[1609464687818,0.75851568,29425.0,29415.0,0.0002]
[1609464687819,0.75851568,29424.0,29415.0,0.0002]
[1609464688050,0.75851568,29423.0,29414.0,0.00166288]
[1609464688246,0.75851568,29422.0,29414.0,0.00166288]
[1609464688450,0.50940001,29419.0,29414.0,0.00166288]
[1609464688647,0.07,29418.0,29414.0,0.00166288]
[1609464688844,0.22,29417.0,29414.0,0.00166288]
[1609464689347,0.22,29417.0,29408.0,0.0006]
[1609464689348,0.445,29417.0,29411.0,0.04163022]
[1609464689644,0.442606,29417.0,29411.0,0.04163022]
[1609464690045,0.07,29416.0,29411.0,0.04163022]
[1609464690544,0.442606,29417.0,29411.0,0.04163022]
[1609464691048,0.227606,29417.0,29411.0,0.04163022]
[1609464691683,1.5,29416.0,29411.0,0.04163022]
[1609464691879,0.07,29415.0,29411.0,0.04163022]
[1609464692981,0.24395,29416.0,29411.0,0.04163022]
[1609464693184,0.18,29415.0,29411.0,0.04163022]
[1609464693384,0.022,29414.0,29411.0,0.04163022]
[1609464694283,0.19923,29414.0,29411.0,0.03163022]
[1609464694784,0.18923,29414.0,29411.0,0.03163022]
[1609464695384,0.012,29414.0,29411.0,0.03163022]
[1609464696584,0.007,29414.0,29411.0,0.03163022]
[1609464697448,0.07,29412.0,29411.0,0.03163022]
[1609464697643,0.07,29412.0,29411.0,0.00819934]
[1609464697848,1.07,29412.0,29411.0,9.34e-06]
[1609464698047,1.21,29412.0,29411.0,9.34e-06]
[1609464699652,0.07,29411.0,29399.0,4.99080934]
[1609464699845,0.07,29409.0,29399.0,4.99080934]
[1609464700046,0.045,29409.0,29399.0,6.01120934]
[1609464700847,0.04,29409.0,29399.0,6.21120934]
[1609464701047,0.23,29408.0,29399.0,6.01120934]
[1609464701249,0.40721,29408.0,29399.0,6.01120934]
[1609464701445,0.17721,29408.0,29399.0,6.01120934]
[1609464702047,0.17721,29408.0,29399.0,6.21120934]
[1609464702251,0.5096,29409.0,29400.0,0.2]
[1609464702451,0.5096,29409.0,29399.0,6.01120934]
[1609464702653,0.56754,29409.0,29399.0,6.01120934]
[1609464702849,0.237,29409.0,29399.0,6.01120934]
[1609464703271,0.232,29409.0,29399.0,6.00620934]
[1609464703470,0.255,29408.0,29399.0,6.00620934]
[1609464703670,0.17523,29408.0,29399.0,6.00620934]
[1609464704271,0.67970001,29404.0,29399.0,6.00620934]
[1609464704469,0.67970001,29404.0,29399.0,5.80820301]
[1609464704772,1.0,29402.0,29399.0,5.75310349]
[1609464704975,0.83637,29401.0,29399.0,4.10381283]
[1609464705274,2.98242762,29401.0,29399.0,0.33526702]
[1609464705480,2.98242762,29401.0,29390.0,0.00166371]
[1609464705481,0.14,29398.0,29390.0,0.00166371]
[1609464705682,1.36345614,29396.0,29375.0,0.0008]
[1609464705879,0.00345614,29392.0,29377.0,0.0004]
[1609464706075,0.66345614,29390.0,29367.0,0.04302986]
[1609464706279,0.14345614,29388.0,29373.0,0.0004]
[1609464706482,0.14345614,29388.0,29367.0,0.02122986]
[1609464706483,0.5103,29377.0,29367.0,0.02122986]
[1609464706780,0.5103,29377.0,29364.0,0.0004]
[1609464706781,0.73543,29377.0,29364.0,0.0004]
[1609464707081,0.73543,29377.0,29357.0,0.03312972]
[1609464707082,0.76142748,29376.0,29357.0,0.03312972]
[1609464707275,0.62333474,29375.0,29357.0,0.00156886]
[1609464707476,0.62333474,29375.0,29369.0,0.0002]
[1609464707674,0.00190726,29374.0,29369.0,0.0002]
[1609464707875,0.00190726,29374.0,29357.0,0.00136886]
[1609464708081,0.76758417,29375.0,29358.0,0.00656086]
[1609464708283,0.14,29375.0,29359.0,0.995]
[1609464708599,0.14,29375.0,29357.0,0.225]
[1609464708795,0.14,29375.0,29360.0,0.00656086]
[1609464709001,0.14,29375.0,29368.0,0.0002]
[1609464709196,0.14,29375.0,29359.0,0.33667122]
[1609464709503,0.14,29375.0,29363.0,0.5101]
[1609464709702,0.0598,29378.0,29364.0,0.00176051]
[1609464709902,0.0598,29378.0,29367.0,0.0002]
[1609464710093,0.0598,29378.0,29367.0,0.14822051]
[1609464710302,0.0598,29378.0,29367.0,0.0002]
[1609464710500,0.03346812,29377.0,29367.0,0.0002]
[1609464710700,0.14524761,29377.0,29363.0,0.5003]
[1609464710899,0.0598,29377.0,29363.0,1.64332051]
[1609464711199,0.0598,29378.0,29364.0,0.82969173]
[1609464711400,0.0598,29378.0,29370.0,0.0002]
[1609464711801,0.0498,29378.0,29370.0,0.0002]
[1609464712375,0.0498,29378.0,29371.0,0.97700001]
[1609464712530,2.007,29380.0,29372.0,0.30302051]
[1609464712733,2.0,29381.0,29373.0,1.11202052]
[1609464712928,2.0,29381.0,29374.0,1.11202052]
[1609464713125,2.0,29381.0,29373.0,0.17898]
[1609464713126,0.00614194,29382.0,29373.0,0.32700051]
[1609464713332,2.0,29381.0,29373.0,0.32700051]
[1609464713631,2.00614215,29386.0,29373.0,0.52700051]
[1609464713824,2.00614215,29386.0,29373.0,0.32700051]
[1609464714034,2.0,29381.0,29374.0,0.26]
[1609464714264,2.0,29385.0,29374.0,0.49469173]
[1609464714562,2.0,29381.0,29373.0,0.49469173]
[1609464714760,2.0,29384.0,29373.0,1.0219]
[1609464714964,1.995,29384.0,29374.0,0.34667122]
[1609464715165,2.0,29381.0,29373.0,1.0119]
[1609464715364,2.0,29383.0,29373.0,1.15492051]
[1609464715567,2.05197949,29384.0,29374.0,0.345]
[1609464715765,1.995,29382.0,29373.0,1.0069]
[1609464716063,2.02846812,29383.0,29373.0,1.0069]
[1609464716268,0.5102,29378.0,29373.0,1.0069]
[1609464716468,0.70451,29378.0,29373.0,1.0069]
[1609464717567,0.05389711,29380.0,29373.0,1.0069]
[1609464717868,0.02846812,29379.0,29373.0,1.0069]
[1609464718085,0.03256442,29379.0,29373.0,1.0069]
[1609464718488,0.05389638,29380.0,29373.0,1.0069]
[1609464718688,0.0040964,29379.0,29373.0,1.0069]
[1609464719093,0.05389643,29380.0,29373.0,1.0069]
[1609464719796,0.0498,29380.0,29373.0,1.00528878]
[1609464720492,2.51419671,29381.0,29373.0,1.00528878]
[1609464720690,2.52034257,29381.0,29373.0,1.00528878]
[1609464720894,2.51419671,29381.0,29373.0,1.00528878]
[1609464721090,0.02846812,29380.0,29373.0,1.00528878]
[1609464721291,0.03256569,29380.0,29373.0,1.00528878]
[1609464721589,0.6803,29379.0,29373.0,1.00528878]
[1609464722295,0.68439835,29379.0,29373.0,1.00528878]
[1609464722790,0.0040986,29378.0,29373.0,1.00528878]
[1609464722991,0.68439917,29379.0,29373.0,1.00528878]
[1609464723190,0.68439917,29379.0,29373.0,1.00367756]
[1609464723493,0.425,29378.0,29373.0,1.00367756]
[1609464723911,0.68439917,29379.0,29373.0,1.00367756]
[1609464724213,0.68439917,29379.0,29374.0,0.96400001]
[1609464724214,0.00409917,29379.0,29374.0,0.96400001]
[1609464724518,2.0,29401.0,29400.0,42.33076764]
[1609464724917,2.0,29401.0,29400.0,42.18274713]
[1609464724918,2.50337534,29401.0,29400.0,42.18274713]
[1609464725119,4.64600105,29401.0,29400.0,42.33076764]
[1609464725315,5.44775793,29401.0,29400.0,41.38295477]
[1609464725524,4.979471,29401.0,29400.0,40.34648504]
[1609464725715,4.87654559,29401.0,29400.0,40.34648504]
[1609464725913,4.87654559,29401.0,29400.0,40.34148504]
[1609464726119,5.38644559,29401.0,29400.0,40.19346453]
[1609464726513,5.38644559,29401.0,29400.0,40.34148504]
[1609464727120,6.07708342,29401.0,29400.0,37.94620937]
[1609464727446,5.79108237,29401.0,29400.0,37.94620937]
[1609464727585,4.91618237,29401.0,29400.0,38.11036937]
[1609464728076,2.92118237,29401.0,29400.0,38.11036937]
[1609464728877,2.23054454,29401.0,29400.0,38.25036937]
[1609464729075,2.23054454,29401.0,29400.0,38.11036937]
[1609464729711,2.22054454,29401.0,29400.0,38.11036937]
[1609464732213,2.22054454,29401.0,29400.0,37.81266937]
[1609464732415,0.23054454,29401.0,29400.0,37.81266937]
[1609464732614,2.23054454,29401.0,29400.0,37.81266937]
[1609464732816,0.23054454,29401.0,29400.0,37.81266937]
[1609464733032,2.23054454,29401.0,29400.0,37.81266937]
[1609464733734,2.23054454,29401.0,29400.0,37.64850937]
[1609464734837,0.23054454,29401.0,29400.0,37.64850937]
[1609464735837,0.22554454,29401.0,29400.0,38.64218693]
[1609464736234,0.22554454,29401.0,29400.0,38.63718693]
[1609464736635,0.22554454,29401.0,29400.0,39.60118694]
[1609464736841,0.22554454,29401.0,29400.0,40.60118694]
[1609464737137,0.22554454,29401.0,29400.0,40.59618694]
[1609464737341,2.0,29405.0,29400.0,39.63218693]
[1609464737541,0.0008,29408.0,29401.0,1.50849174]
[1609464737740,2.0,29407.0,29402.0,1.79349174]
[1609464737949,2.0008,29408.0,29405.0,0.5095]
[1609464738244,0.21934307,29406.0,29405.0,1.50317756]
[1609464738869,0.2193915,29407.0,29406.0,0.39647122]
[1609464739265,0.0008,29408.0,29405.0,1.50317756]
[1609464739465,0.0008,29408.0,29406.0,0.39647122]
[1609464739660,0.21934428,29407.0,29406.0,0.39647122]
[1609464740470,0.21934428,29407.0,29405.0,0.99367756]
[1609464740667,0.225,29406.0,29405.0,0.99367756]
[1609464740864,0.21934428,29407.0,29405.0,0.6461222]
[1609464742168,0.21934428,29407.0,29405.0,0.64347399]
[1609464742808,1.0,29406.0,29405.0,0.64347399]
[1609464743010,1.18,29406.0,29405.0,0.64347399]
[1609464743510,1.40105236,29406.0,29405.0,0.22909052]
[1609464744104,1.18,29406.0,29405.0,0.22909052]
[1609464744550,1.3903087,29406.0,29405.0,0.22909052]
[1609464746345,1.3903087,29406.0,29405.0,0.22409052]
[1609464749279,1.3903087,29406.0,29405.0,0.19609052]
[1609464749975,1.3753087,29406.0,29405.0,0.19609052]
[1609464750583,1.98416918,29406.0,29405.0,0.19609052]
[1609464751191,1.05624639,29410.0,29405.0,0.19609052]
[1609464751192,0.8408,29421.0,29420.0,22.61279496]
[1609464751484,1.85915004,29421.0,29420.0,21.23755546]
[1609464751679,4.04544549,29421.0,29420.0,19.01229217]
[1609464751881,4.51044549,29421.0,29420.0,12.79619956]
[1609464752079,4.65500941,29421.0,29420.0,11.37260897]
[1609464752280,5.72595836,29421.0,29420.0,9.61517743]
[1609464752478,5.42649445,29421.0,29420.0,6.07178116]
[1609464752775,5.58219604,29421.0,29420.0,4.96517063]
[1609464752979,5.58219604,29421.0,29420.0,4.47422287]
[1609464753182,5.58219604,29421.0,29420.0,3.68348797]
[1609464753378,6.58219604,29421.0,29420.0,3.51136027]
[1609464753580,6.58219604,29421.0,29420.0,2.28021917]
[1609464753802,7.37219604,29421.0,29420.0,2.28021917]
[1609464754006,7.86831244,29421.0,29420.0,0.80078337]
[1609464754306,7.97909728,29421.0,29420.0,0.15404606]
[1609464754504,7.97909728,29421.0,29390.0,0.499068]
[1609464754716,0.1578,29403.0,29390.0,0.43241336]
[1609464754908,0.165,29402.0,29390.0,0.36998422]
[1609464755109,2.165,29402.0,29390.0,0.34038018]
[1609464755304,1.01752732,29401.0,29390.0,0.34038018]
[1609464755502,3.01752732,29401.0,29390.0,0.34038018]
[1609464755902,0.465,29401.0,29390.0,0.34038018]
[1609464756110,2.0,29400.0,29390.0,0.34038018]
[1609464756504,1.99890744,29400.0,29390.0,0.34038018]
[1609464756705,0.01775971,29401.0,29390.0,0.34038018]
[1609464756907,2.0,29399.0,29390.0,0.34038018]
[1609464757103,0.415,29400.0,29390.0,0.34038018]
[1609464757306,2.0,29398.0,29390.0,0.34038018]
[1609464757550,0.01775971,29401.0,29390.0,0.34038018]
[1609464757551,2.0,29399.0,29390.0,0.34038018]
[1609464757748,2.0,29397.0,29390.0,0.34038018]
[1609464757949,0.3,29396.0,29390.0,0.34038018]
[1609464758148,2.0,29396.0,29390.0,0.34038018]
[1609464758348,2.0,29397.0,29390.0,0.34038018]
[1609464758547,2.0,29395.0,29390.0,0.34038018]
[1609464758852,2.0,29396.0,29390.0,0.34038018]
[1609464759048,2.0,29394.0,29390.0,0.34038018]
[1609464759256,0.4027437,29395.0,29390.0,0.34038018]
[1609464759257,2.3,29395.0,29390.0,0.34038018]
[1609464759476,0.01775971,29401.0,29390.0,0.34038018]
[1609464759477,2.0,29399.0,29390.0,0.34038018]
[1609464759781,2.0,29394.0,29390.0,0.34038018]
[1609464760082,0.3,29393.0,29390.0,0.34038018]
[1609464760279,2.3,29393.0,29390.0,0.34038018]
[1609464760478,0.3,29393.0,29390.0,0.34038018]
[1609464760678,2.0,29399.0,29390.0,0.34038018]
[1609464760980,2.0,29392.0,29390.0,0.34038018]
[1609464761179,0.3,29391.0,29390.0,0.34038018]
[1609464761382,2.0,29399.0,29390.0,0.34038018]
[1609464761680,0.10151898,29395.0,29390.0,0.34038018]
[1609464761881,2.0,29398.0,29390.0,0.33538018]
[1609464762079,0.52,29399.0,29390.0,0.33538018]
[1609464762380,2.0,29398.0,29390.0,0.33538018]
[1609464762683,2.52,29399.0,29390.0,0.33538018]
[1609464762876,2.0,29397.0,29390.0,0.33538018]
[1609464763109,2.52,29398.0,29390.0,0.33538018]
[1609464763309,2.375,29396.0,29390.0,0.33538018]
[1609464763511,0.375,29396.0,29390.0,0.33538018]
[1609464763712,2.0,29395.0,29390.0,0.33538018]
[1609464763912,1.975,29395.0,29390.0,0.33538018]
[1609464764613,0.35,29394.0,29390.0,0.33538018]
[1609464764810,0.45174559,29394.0,29390.0,0.33538018]
[1609464765208,2.0,29393.0,29390.0,0.33538018]
[1609464765611,0.365,29392.0,29390.0,0.33538018]
[1609464766017,2.0,29391.0,29390.0,0.33538018]
[1609464766512,0.10174559,29394.0,29390.0,0.33538018]
[1609464766513,2.0,29393.0,29390.0,0.33538018]
[1609464766712,2.0,29391.0,29390.0,0.33538018]
[1609464766912,1.99,29391.0,29390.0,0.33538018]
[1609464767114,2.0,29393.0,29390.0,0.32138018]
[1609464767315,2.0,29391.0,29390.0,0.31638018]
[1609464767614,2.0,29392.0,29390.0,0.31638018]
[1609464767814,2.0,29391.0,29390.0,0.31638018]
[1609464768012,2.315,29391.0,29390.0,0.31638018]
[1609464768216,0.315,29391.0,29390.0,0.31638018]
[1609464768411,2.315,29391.0,29390.0,0.31638018]
[1609464768614,0.315,29391.0,29390.0,0.31638018]
[1609464769036,2.315,29391.0,29390.0,0.31638018]
[1609464769434,0.315,29391.0,29390.0,0.31638018]
[1609464769636,2.315,29391.0,29390.0,0.31638018]
[1609464769835,0.31,29391.0,29390.0,0.31638018]
[1609464770035,2.31,29391.0,29390.0,0.31638018]
[1609464770233,2.0,29391.0,29390.0,0.31638018]
[1609464770434,2.0,29396.0,29390.0,0.31138018]
[1609464770640,2.0,29391.0,29390.0,0.31138018]
[1609464770839,2.0,29395.0,29390.0,0.31138018]
[1609464771045,2.0,29391.0,29390.0,0.30823462]
[1609464771245,2.0,29394.0,29390.0,1.27223463]
[1609464771445,0.39263688,29398.0,29391.0,0.96400001]
[1609464771642,0.39263688,29398.0,29392.0,0.39647122]
[1609464771844,2.0,29394.0,29392.0,0.2]
[1609464772042,0.39263688,29398.0,29392.0,1.16400001]
[1609464772248,2.0,29397.0,29393.0,0.96400001]
[1609464772549,2.0,29397.0,29393.0,1.32194001]
[1609464772692,2.0,29396.0,29394.0,0.96400001]
[1609464772885,2.0,29397.0,29395.0,0.59647122]
[1609464773089,0.38763688,29398.0,29397.0,2.44647122]
[1609464773283,0.38763688,29398.0,29397.0,3.01400001]
[1609464773482,2.38763688,29398.0,29397.0,3.01400001]
[1609464773683,0.38763688,29398.0,29397.0,2.81400001]
[1609464773989,2.38763688,29398.0,29397.0,3.46400001]
[1609464774188,0.38763688,29398.0,29397.0,3.01400001]
[1609464774416,2.38763688,29398.0,29395.0,0.7098]
[1609464774616,0.38763688,29398.0,29395.0,1.67380001]
[1609464774816,2.0,29397.0,29396.0,2.81400001]
[1609464775014,2.0,29397.0,29396.0,1.16400001]
[1609464775511,1.9911039,29397.0,29396.0,1.16400001]
[1609464775915,1.9911039,29397.0,29395.0,0.7098]
[1609464776115,2.3461039,29397.0,29396.0,2.46047123]
[1609464776413,1.9911039,29397.0,29396.0,2.06400001]
[1609464776616,1.9911039,29397.0,29396.0,2.46047123]
[1609464776818,1.9911039,29397.0,29396.0,2.06400001]
[1609464777118,1.9911039,29397.0,29396.0,7.57597123]
[1609464777119,1.3117039,29397.0,29396.0,7.57597123]
[1609464777317,0.6223039,29397.0,29396.0,4.07597123]
[1609464777620,0.6223039,29397.0,29396.0,3.11197122]
[1609464777917,0.6223039,29397.0,29396.0,2.21197122]
[1609464778151,0.6223039,29397.0,29396.0,2.01197122]
[1609464778341,0.6223039,29397.0,29396.0,1.41697122]
[1609464778743,0.6223039,29397.0,29396.0,2.18450001]
[1609464779145,0.6223039,29397.0,29396.0,3.53097123]
[1609464779340,0.6223039,29397.0,29396.0,2.18450001]
[1609464779548,1.078e-05,29398.0,29397.0,0.96400001]
[1609464779748,1.078e-05,29398.0,29397.0,2.94182323]
[1609464780451,2.0,29405.0,29403.0,0.96400001]
[1609464780650,2.0,29410.0,29404.0,1.67350001]
[1609464780952,2.0,29408.0,29406.0,0.39647122]
[1609464781147,2.0,29413.0,29407.0,0.96400001]
[1609464781351,2.0,29411.0,29407.0,1.16400001]
[1609464781652,0.08244418,29416.0,29408.0,0.96400001]
[1609464781951,2.0,29415.0,29408.0,0.96400001]
[1609464782144,0.31,29414.0,29408.0,0.96400001]
[1609464782450,0.31,29414.0,29405.0,0.6294]
[1609464782451,2.0,29413.0,29405.0,0.6294]
[1609464782648,1.4,29413.0,29410.0,0.5095]